[Event "Titled Tuesday Blitz November 14 Late 2023"]
[White "patzersame"]
[Black "Buchenau, Frank"]
[BlackFideId "4604350"]
[WhiteElo "2323"]
[BlackElo "2415"]
[Result "1-0"]
[Round "7"]
[TimeControl "180+1"]
[Date "2023.11.14"]
[WhiteClock "0:00:09"]
[BlackClock "0:00:00"]
[Board "102"]

1. e4 {[%clk 0:03:00]}  e6 {[%clk 0:02:58]} 2. d4 {[%clk 0:03:00]}  d5 {[%clk 0:02:58]} 3. e5 {[%clk 0:03:01]}  c5 {[%clk 0:02:58]} 4. Qg4 {[%clk 0:03:02]}  cxd4 {[%clk 0:02:57]} 5. Nf3 {[%clk 0:03:02]}  Nc6 {[%clk 0:02:56]} 6. Bd3 {[%clk 0:03:01]}  f6 {[%clk 0:02:55]} 7. Bxh7 {[%clk 0:02:58]}  fxe5 {[%clk 0:02:48]} 8. Bg6+ {[%clk 0:02:58]}  Kd7 {[%clk 0:02:44]} 9. O-O {[%clk 0:02:51]}  Nf6 {[%clk 0:02:42]} 10. Qg5 {[%clk 0:02:48]}  Bd6 {[%clk 0:02:36]} 11. g3 {[%clk 0:02:47]}  e4 {[%clk 0:02:28]} 12. Ne1 {[%clk 0:02:41]}  Ne5 {[%clk 0:02:23]} 13. f4 {[%clk 0:02:24]}  Neg4 {[%clk 0:01:58]} 14. f5 {[%clk 0:02:15]}  Nxh2 {[%clk 0:01:43]} 15. fxe6+ {[%clk 0:02:14]}  Kc7 {[%clk 0:01:41]} 16. Bf5 {[%clk 0:01:31]}  Nxf1 {[%clk 0:01:34]} 17. Qxg7+ {[%clk 0:01:31]}  Kb6 {[%clk 0:01:27]} 18. Bg5 {[%clk 0:01:18]}  Be7 {[%clk 0:01:12]} 19. Kxf1 {[%clk 0:01:16]}  Rh1+ {[%clk 0:00:55]} 20. Ke2 {[%clk 0:01:08]}  Rh2+ {[%clk 0:00:42]} 21. Kd1 {[%clk 0:01:06]}  Rf2 {[%clk 0:00:36]} 22. g4 {[%clk 0:00:52]}  a6 {[%clk 0:00:26]} 23. Nd2 {[%clk 0:00:44]}  Ka7 {[%clk 0:00:25]} 24. Bh4 {[%clk 0:00:28]}  Rh2 {[%clk 0:00:17]} 25. Bg3 {[%clk 0:00:27]}  Rh1 {[%clk 0:00:16]} 26. Be5 {[%clk 0:00:26]}  Ne8 {[%clk 0:00:15]} 27. Bxd4+ {[%clk 0:00:26]}  Kb8 {[%clk 0:00:14]} 28. Be5+ {[%clk 0:00:25]}  Bd6 {[%clk 0:00:14]} 29. c3 {[%clk 0:00:20]}  Bxe5 {[%clk 0:00:14]} 30. Qxe5+ {[%clk 0:00:21]}  Qd6 {[%clk 0:00:14]} 31. Qd4 {[%clk 0:00:20]}  Bxe6 {[%clk 0:00:11]} 32. Nxe4 {[%clk 0:00:15]}  Qe7 {[%clk 0:00:09]} 33. Qe5+ {[%clk 0:00:14]}  Nc7 {[%clk 0:00:08]} 34. Ng3 {[%clk 0:00:13]}  Qd7 {[%clk 0:00:06]} 35. Nxh1 {[%clk 0:00:11]}  Bxf5 {[%clk 0:00:06]} 36. Qxf5 {[%clk 0:00:11]}  Qb5 {[%clk 0:00:05]} 37. Kc2 {[%clk 0:00:10]}  Ka7 {[%clk 0:00:05]} 38. Nd3 {[%clk 0:00:10]}  Re8 {[%clk 0:00:05]} 39. Qf2+ {[%clk 0:00:10]}  b6 {[%clk 0:00:05]} 40. Ng3 {[%clk 0:00:11]}  Ne6 {[%clk 0:00:03]} 41. Re1 {[%clk 0:00:11]}  Qc6 {[%clk 0:00:03]} 42. Nf5 {[%clk 0:00:10]}  Rc8 {[%clk 0:00:03]} 43. Nd4 {[%clk 0:00:10]}  Qa4+ {[%clk 0:00:04]} 44. Kb1 {[%clk 0:00:09]}  Nxd4 {[%clk 0:00:04]} 45. Qxd4 {[%clk 0:00:10]}  Qd7 {[%clk 0:00:02]} 46. a3 {[%clk 0:00:10]}  Rc4 {[%clk 0:00:00]} 47. Ne5 {[%clk 0:00:09]} 1-0


[Site "https://www.chess.com"]

[Event "Titled Tuesday Blitz November 14 Late 2023"]
[White "Benaddi, Mouhcine"]
[Black "Kuegel, Tobias"]
[WhiteFideId "9001050"]
[BlackFideId "4636295"]
[WhiteElo "2225"]
[BlackElo "2400"]
[Result "1-0"]
[Round "7"]
[TimeControl "180+1"]
[Date "2023.11.14"]
[WhiteClock "0:01:33"]
[BlackClock "0:01:18"]
[Board "105"]

1. Nf3 {[%clk 0:03:00]}  d5 {[%clk 0:02:56]} 2. e3 {[%clk 0:02:55]}  c5 {[%clk 0:02:54]} 3. d4 {[%clk 0:02:55]}  Nf6 {[%clk 0:02:53]} 4. Be2 {[%clk 0:02:51]}  Nc6 {[%clk 0:02:52]} 5. c4 {[%clk 0:02:48]}  cxd4 {[%clk 0:02:45]} 6. cxd5 {[%clk 0:02:44]}  Qxd5 {[%clk 0:02:44]} 7. exd4 {[%clk 0:02:40]}  Bg4 {[%clk 0:02:41]} 8. Nc3 {[%clk 0:02:36]}  Qh5 {[%clk 0:02:41]} 9. Qb3 {[%clk 0:02:33]}  O-O-O {[%clk 0:02:36]} 10. O-O {[%clk 0:02:28]}  e6 {[%clk 0:02:31]} 11. Bf4 {[%clk 0:02:24]}  g5 {[%clk 0:02:25]} 12. Be5 {[%clk 0:02:18]}  Bd6 {[%clk 0:02:06]} 13. Rac1 {[%clk 0:02:13]}  Bxe5 {[%clk 0:01:56]} 14. dxe5 {[%clk 0:02:09]}  Nd5 {[%clk 0:01:57]} 15. Nxd5 {[%clk 0:02:05]}  Rxd5 {[%clk 0:01:58]} 16. Ba6 {[%clk 0:02:01]}  Bxf3 {[%clk 0:01:21]} 17. Qxb7+ {[%clk 0:01:54]}  Kd8 {[%clk 0:01:20]} 18. Rxc6 {[%clk 0:01:47]}  Rd7 {[%clk 0:01:19]} 19. Rc8+ {[%clk 0:01:42]}  Ke7 {[%clk 0:01:19]} 20. Qb4+ {[%clk 0:01:38]}  Rd6 {[%clk 0:01:18]} 21. Qxd6# {[%clk 0:01:33]} 1-0


[Site "https://www.chess.com"]

[Event "Titled Tuesday Blitz November 14 Late 2023"]
[White "Mushini Ajay"]
[Black "Floresvillar Gonzalez, Luis Migu"]
[WhiteFideId "35066188"]
[BlackFideId "5100542"]
[WhiteElo "2400"]
[BlackElo "2217"]
[Result "1-0"]
[Round "7"]
[TimeControl "180+1"]
[Date "2023.11.14"]
[WhiteClock "0:00:29"]
[BlackClock "0:00:00"]
[Board "106"]

1. e4 {[%clk 0:02:54]}  c6 {[%clk 0:03:00]} 2. c4 {[%clk 0:02:51]}  d5 {[%clk 0:02:59]} 3. exd5 {[%clk 0:02:52]}  cxd5 {[%clk 0:02:59]} 4. cxd5 {[%clk 0:02:53]}  Nf6 {[%clk 0:02:58]} 5. Nc3 {[%clk 0:02:54]}  Nxd5 {[%clk 0:02:58]} 6. Bc4 {[%clk 0:02:50]}  e6 {[%clk 0:02:54]} 7. d4 {[%clk 0:02:46]}  Nxc3 {[%clk 0:02:53]} 8. bxc3 {[%clk 0:02:43]}  Qc7 {[%clk 0:02:50]} 9. Qd3 {[%clk 0:02:41]}  Be7 {[%clk 0:02:49]} 10. Nf3 {[%clk 0:02:39]}  Nd7 {[%clk 0:02:48]} 11. O-O {[%clk 0:02:38]}  O-O {[%clk 0:02:43]} 12. Bb3 {[%clk 0:02:31]}  a6 {[%clk 0:02:43]} 13. Bg5 {[%clk 0:02:29]}  Bxg5 {[%clk 0:02:39]} 14. Nxg5 {[%clk 0:02:28]}  Nf6 {[%clk 0:02:39]} 15. Bc2 {[%clk 0:02:24]}  g6 {[%clk 0:02:29]} 16. Qf3 {[%clk 0:02:21]}  Kg7 {[%clk 0:02:21]} 17. Bb3 {[%clk 0:02:13]}  Bd7 {[%clk 0:02:19]} 18. c4 {[%clk 0:02:07]}  Rad8 {[%clk 0:02:08]} 19. Rad1 {[%clk 0:02:00]}  h6 {[%clk 0:02:07]} 20. Ne4 {[%clk 0:01:57]}  Nxe4 {[%clk 0:02:02]} 21. Qxe4 {[%clk 0:01:58]}  Bc6 {[%clk 0:02:00]} 22. d5 {[%clk 0:01:55]}  exd5 {[%clk 0:01:59]} 23. cxd5 {[%clk 0:01:56]}  Bb5 {[%clk 0:01:55]} 24. d6 {[%clk 0:01:47]}  Qc5 {[%clk 0:01:37]} 25. Rd5 {[%clk 0:01:32]}  Qc3 {[%clk 0:01:18]} 26. Rfd1 {[%clk 0:00:59]}  Bc6 {[%clk 0:01:11]} 27. Qd4+ {[%clk 0:00:58]}  Qxd4 {[%clk 0:01:08]} 28. R5xd4 {[%clk 0:00:59]}  Rd7 {[%clk 0:01:06]} 29. f3 {[%clk 0:00:57]}  Rfd8 {[%clk 0:01:06]} 30. Kf2 {[%clk 0:00:58]}  f5 {[%clk 0:01:01]} 31. Be6 {[%clk 0:00:53]}  Kf6 {[%clk 0:00:53]} 32. Bxd7 {[%clk 0:00:53]}  Rxd7 {[%clk 0:00:53]} 33. Re1 {[%clk 0:00:51]}  g5 {[%clk 0:00:42]} 34. f4 {[%clk 0:00:49]}  gxf4 {[%clk 0:00:37]} 35. Re7 {[%clk 0:00:39]}  Rxe7 {[%clk 0:00:35]} 36. dxe7 {[%clk 0:00:40]}  Kxe7 {[%clk 0:00:35]} 37. Rxf4 {[%clk 0:00:41]}  Be4 {[%clk 0:00:15]} 38. Rh4 {[%clk 0:00:39]}  Bd5 {[%clk 0:00:11]} 39. a3 {[%clk 0:00:35]}  b5 {[%clk 0:00:07]} 40. Rxh6 {[%clk 0:00:35]}  a5 {[%clk 0:00:08]} 41. Rb6 {[%clk 0:00:32]}  Bc4 {[%clk 0:00:06]} 42. Ke3 {[%clk 0:00:30]}  a4 {[%clk 0:00:00]} 43. Kf4 {[%clk 0:00:29]} 1-0


[Site "https://www.chess.com"]

[Event "Titled Tuesday Blitz November 14 Late 2023"]
[White "Winkels, Marcel"]
[Black "Huda, Maryana"]
[WhiteFideId "1003887"]
[BlackFideId "14116553"]
[WhiteElo "2089"]
[BlackElo "2348"]
[Result "0-1"]
[Round "7"]
[TimeControl "180+1"]
[Date "2023.11.14"]
[WhiteClock "0:00:25"]
[BlackClock "0:00:31"]
[Board "111"]

1. e4 {[%clk 0:03:00]}  c5 {[%clk 0:02:57]} 2. Nf3 {[%clk 0:03:00]}  d6 {[%clk 0:02:57]} 3. d4 {[%clk 0:03:00]}  cxd4 {[%clk 0:02:58]} 4. Nxd4 {[%clk 0:03:01]}  Nf6 {[%clk 0:02:57]} 5. Nc3 {[%clk 0:03:01]}  a6 {[%clk 0:02:57]} 6. h3 {[%clk 0:03:01]}  e5 {[%clk 0:02:55]} 7. Nf3 {[%clk 0:02:59]}  Be7 {[%clk 0:02:54]} 8. Bc4 {[%clk 0:02:58]}  O-O {[%clk 0:02:53]} 9. O-O {[%clk 0:02:55]}  Be6 {[%clk 0:02:52]} 10. Bxe6 {[%clk 0:02:54]}  fxe6 {[%clk 0:02:53]} 11. Ng5 {[%clk 0:02:54]}  Qd7 {[%clk 0:02:51]} 12. Be3 {[%clk 0:02:47]}  h6 {[%clk 0:02:48]} 13. Nf3 {[%clk 0:02:46]}  Nc6 {[%clk 0:02:44]} 14. a3 {[%clk 0:02:45]}  Rad8 {[%clk 0:02:43]} 15. Qd3 {[%clk 0:02:45]}  d5 {[%clk 0:02:43]} 16. Bb6 {[%clk 0:02:35]}  Rc8 {[%clk 0:02:17]} 17. Rad1 {[%clk 0:02:30]}  d4 {[%clk 0:01:45]} 18. Ne2 {[%clk 0:02:27]}  Qe8 {[%clk 0:01:40]} 19. c3 {[%clk 0:02:20]}  Qg6 {[%clk 0:01:27]} 20. Ng3 {[%clk 0:02:13]}  Bd6 {[%clk 0:01:12]} 21. cxd4 {[%clk 0:02:10]}  exd4 {[%clk 0:01:11]} 22. Nd2 {[%clk 0:01:44]}  Bxg3 {[%clk 0:01:08]} 23. Qxg3 {[%clk 0:01:41]}  Qxg3 {[%clk 0:01:08]} 24. fxg3 {[%clk 0:01:40]}  e5 {[%clk 0:01:08]} 25. Nc4 {[%clk 0:01:35]}  Nxe4 {[%clk 0:00:55]} 26. Rfe1 {[%clk 0:01:29]}  Nxg3 {[%clk 0:00:53]} 27. Nxe5 {[%clk 0:01:23]}  Nxe5 {[%clk 0:00:53]} 28. Rxe5 {[%clk 0:01:22]}  Rce8 {[%clk 0:00:50]} 29. Rxe8 {[%clk 0:01:09]}  Rxe8 {[%clk 0:00:51]} 30. Rxd4 {[%clk 0:01:08]}  Ne2+ {[%clk 0:00:50]} 31. Kf2 {[%clk 0:01:06]}  Nxd4 {[%clk 0:00:50]} 32. Bxd4 {[%clk 0:01:06]}  Kf7 {[%clk 0:00:48]} 33. b4 {[%clk 0:01:02]}  g6 {[%clk 0:00:47]} 34. a4 {[%clk 0:01:01]}  h5 {[%clk 0:00:45]} 35. a5 {[%clk 0:01:01]}  Ke6 {[%clk 0:00:45]} 36. Bc5 {[%clk 0:01:01]}  Kd5 {[%clk 0:00:45]} 37. Kf3 {[%clk 0:01:00]}  Re4 {[%clk 0:00:44]} 38. g4 {[%clk 0:00:58]}  hxg4+ {[%clk 0:00:43]} 39. hxg4 {[%clk 0:00:58]}  Rc4 {[%clk 0:00:43]} 40. Be7 {[%clk 0:00:57]}  Ke5 {[%clk 0:00:39]} 41. g5 {[%clk 0:00:55]}  Rc3+ {[%clk 0:00:37]} 42. Kg4 {[%clk 0:00:53]}  Ke4 {[%clk 0:00:36]} 43. Bd6 {[%clk 0:00:51]}  Rc1 {[%clk 0:00:34]} 44. Kg3 {[%clk 0:00:46]}  Kf5 {[%clk 0:00:33]} 45. Be7 {[%clk 0:00:44]}  Rc4 {[%clk 0:00:31]} 46. Kf3 {[%clk 0:00:42]}  Rf4+ {[%clk 0:00:31]} 47. Ke3 {[%clk 0:00:42]}  Re4+ {[%clk 0:00:30]} 48. Kd3 {[%clk 0:00:25]}  Rxe7 {[%clk 0:00:31]} 0-1


[Site "https://www.chess.com"]

[Event "Titled Tuesday Blitz November 14 Late 2023"]
[White "Gyulamiryan-koryun"]
[Black "Reprintsev, Alexander"]
[BlackFideId "14100541"]
[WhiteElo "1898"]
[BlackElo "2482"]
[Result "0-1"]
[Round "7"]
[TimeControl "180+1"]
[Date "2023.11.14"]
[WhiteClock "0:00:00"]
[BlackClock "0:00:55"]
[Board "115"]

1. e4 {[%clk 0:02:58]}  d5 {[%clk 0:02:59]} 2. exd5 {[%clk 0:02:57]}  Qxd5 {[%clk 0:02:59]} 3. Nc3 {[%clk 0:02:57]}  Qa5 {[%clk 0:02:58]} 4. d4 {[%clk 0:02:57]}  Nf6 {[%clk 0:02:58]} 5. Nf3 {[%clk 0:02:57]}  Nc6 {[%clk 0:02:58]} 6. Bf4 {[%clk 0:02:48]}  Bg4 {[%clk 0:02:56]} 7. Be2 {[%clk 0:02:43]}  O-O-O {[%clk 0:02:56]} 8. h3 {[%clk 0:02:42]}  Bxf3 {[%clk 0:02:56]} 9. Bxf3 {[%clk 0:02:42]}  Nxd4 {[%clk 0:02:56]} 10. O-O {[%clk 0:02:34]}  e5 {[%clk 0:02:56]} 11. Be3 {[%clk 0:02:24]}  Nxf3+ {[%clk 0:02:53]} 12. Qxf3 {[%clk 0:02:23]}  Bc5 {[%clk 0:02:52]} 13. Bg5 {[%clk 0:02:06]}  Rd6 {[%clk 0:02:48]} 14. a3 {[%clk 0:01:59]}  Bd4 {[%clk 0:02:46]} 15. b4 {[%clk 0:01:58]}  Qa6 {[%clk 0:02:41]} 16. Rad1 {[%clk 0:01:52]}  Rhd8 {[%clk 0:02:15]} 17. Ne4 {[%clk 0:01:35]}  Nxe4 {[%clk 0:01:48]} 18. Bxd8 {[%clk 0:01:28]}  Nxf2 {[%clk 0:01:48]} 19. Rxd4 {[%clk 0:01:23]}  Rxd4 {[%clk 0:01:41]} 20. Be7 {[%clk 0:01:09]}  Rf4 {[%clk 0:01:36]} 21. Qd5 {[%clk 0:00:55]}  Nxh3+ {[%clk 0:01:22]} 22. Kh2 {[%clk 0:00:46]}  Rd4 {[%clk 0:01:21]} 23. Qxf7 {[%clk 0:00:40]}  b6 {[%clk 0:01:06]} 24. Qf5+ {[%clk 0:00:25]}  Kb7 {[%clk 0:01:06]} 25. Qf3+ {[%clk 0:00:24]}  e4 {[%clk 0:01:03]} 26. Qf5 {[%clk 0:00:18]}  Qc4 {[%clk 0:01:00]} 27. Bh4 {[%clk 0:00:10]}  e3 {[%clk 0:00:57]} 28. Qf3+ {[%clk 0:00:09]}  Ka6 {[%clk 0:00:56]} 29. gxh3 {[%clk 0:00:08]}  Rxh4 {[%clk 0:00:55]} 30. Qxe3 {[%clk 0:00:00]}  Qxf1 {[%clk 0:00:55]} 0-1


[Site "https://www.chess.com"]

[Event "Titled Tuesday Blitz November 14 Late 2023"]
[White "Martin Barcelo, Carles"]
[Black "Perry, Patrick"]
[WhiteFideId "24561444"]
[BlackFideId "30917727"]
[WhiteElo "2450"]
[BlackElo "2253"]
[Result "1-0"]
[Round "7"]
[TimeControl "180+1"]
[Date "2023.11.14"]
[WhiteClock "0:01:31"]
[BlackClock "0:00:41"]
[Board "117"]

1. d4 {[%clk 0:03:00]}  c5 {[%clk 0:03:00]} 2. Nf3 {[%clk 0:02:50]}  Nf6 {[%clk 0:03:00]} 3. dxc5 {[%clk 0:02:48]}  Qa5+ {[%clk 0:02:53]} 4. Bd2 {[%clk 0:02:43]}  Qxc5 {[%clk 0:02:54]} 5. e3 {[%clk 0:02:43]}  d5 {[%clk 0:02:52]} 6. c4 {[%clk 0:02:40]}  dxc4 {[%clk 0:02:50]} 7. Nc3 {[%clk 0:02:38]}  Nc6 {[%clk 0:02:49]} 8. Rc1 {[%clk 0:02:38]}  e5 {[%clk 0:02:47]} 9. Be2 {[%clk 0:02:38]}  Be6 {[%clk 0:02:47]} 10. O-O {[%clk 0:02:39]}  Be7 {[%clk 0:02:46]} 11. Qa4 {[%clk 0:02:39]}  a6 {[%clk 0:02:41]} 12. Qc2 {[%clk 0:02:21]}  O-O {[%clk 0:02:40]} 13. Ne4 {[%clk 0:02:22]}  Nxe4 {[%clk 0:02:40]} 14. Qxe4 {[%clk 0:02:23]}  f5 {[%clk 0:02:37]} 15. Qc2 {[%clk 0:02:20]}  e4 {[%clk 0:02:32]} 16. Ne1 {[%clk 0:02:10]}  Ne5 {[%clk 0:02:29]} 17. Bc3 {[%clk 0:02:07]}  Nd3 {[%clk 0:02:27]} 18. Bd4 {[%clk 0:02:08]}  Qb5 {[%clk 0:02:22]} 19. Rb1 {[%clk 0:02:01]}  Rac8 {[%clk 0:02:20]} 20. f3 {[%clk 0:01:50]}  Bd5 {[%clk 0:02:17]} 21. f4 {[%clk 0:01:45]}  Bf6 {[%clk 0:02:17]} 22. Bxf6 {[%clk 0:01:44]}  Rxf6 {[%clk 0:02:16]} 23. Qc3 {[%clk 0:01:42]}  Rfc6 {[%clk 0:02:14]} 24. Nc2 {[%clk 0:01:42]}  Qc5 {[%clk 0:02:13]} 25. Nd4 {[%clk 0:01:41]}  R6c7 {[%clk 0:02:12]} 26. Nxf5 {[%clk 0:01:38]}  b5 {[%clk 0:02:08]} 27. a3 {[%clk 0:01:30]}  a5 {[%clk 0:02:07]} 28. Qxa5 {[%clk 0:01:30]}  b4 {[%clk 0:02:06]} 29. Qxc5 {[%clk 0:01:29]}  Rxc5 {[%clk 0:02:04]} 30. Ne7+ {[%clk 0:01:29]}  Kf7 {[%clk 0:02:04]} 31. Nxc8 {[%clk 0:01:30]}  Rxc8 {[%clk 0:02:02]} 32. Bxd3 {[%clk 0:01:31]}  exd3 {[%clk 0:02:01]} 33. axb4 {[%clk 0:01:31]}  c3 {[%clk 0:01:58]} 34. bxc3 {[%clk 0:01:32]}  Rxc3 {[%clk 0:01:57]} 35. Rf2 {[%clk 0:01:33]}  Be4 {[%clk 0:01:53]} 36. Rd2 {[%clk 0:01:31]}  Ke6 {[%clk 0:01:51]} 37. Kf2 {[%clk 0:01:30]}  Kd5 {[%clk 0:01:51]} 38. b5 {[%clk 0:01:31]}  Rc7 {[%clk 0:01:50]} 39. b6 {[%clk 0:01:31]}  Rb7 {[%clk 0:01:50]} 40. Rb4 {[%clk 0:01:31]}  g6 {[%clk 0:00:41]} 41. Rd4+ {[%clk 0:01:31]} 1-0


[Site "https://www.chess.com"]

[Event "Titled Tuesday Blitz November 14 Late 2023"]
[White "claudiuprunescu"]
[Black "Laskakis, Konstantinos"]
[BlackFideId "42134374"]
[WhiteElo "2199"]
[BlackElo "2338"]
[Result "0-1"]
[Round "7"]
[TimeControl "180+1"]
[Date "2023.11.14"]
[WhiteClock "0:00:09"]
[BlackClock "0:00:20"]
[Board "118"]

1. d4 {[%clk 0:03:00]}  d5 {[%clk 0:02:59]} 2. c4 {[%clk 0:03:00]}  e6 {[%clk 0:03:00]} 3. Nc3 {[%clk 0:03:00]}  c6 {[%clk 0:03:00]} 4. cxd5 {[%clk 0:02:58]}  exd5 {[%clk 0:02:59]} 5. Nf3 {[%clk 0:02:58]}  Bd6 {[%clk 0:02:58]} 6. Bg5 {[%clk 0:02:56]}  Ne7 {[%clk 0:02:54]} 7. e3 {[%clk 0:02:56]}  O-O {[%clk 0:02:50]} 8. Bd3 {[%clk 0:02:56]}  h6 {[%clk 0:02:44]} 9. Bh4 {[%clk 0:02:54]}  Re8 {[%clk 0:02:32]} 10. Qc2 {[%clk 0:02:50]}  Qc7 {[%clk 0:02:26]} 11. Bg3 {[%clk 0:02:49]}  Be6 {[%clk 0:02:22]} 12. Rc1 {[%clk 0:02:45]}  Bxg3 {[%clk 0:02:15]} 13. hxg3 {[%clk 0:02:43]}  Nd7 {[%clk 0:02:11]} 14. Bh7+ {[%clk 0:02:26]}  Kf8 {[%clk 0:02:03]} 15. Kf1 {[%clk 0:02:06]}  Nf6 {[%clk 0:02:02]} 16. Bd3 {[%clk 0:02:04]}  Qd7 {[%clk 0:01:55]} 17. Ne5 {[%clk 0:02:03]}  Qd8 {[%clk 0:01:46]} 18. Qb3 {[%clk 0:01:55]}  Qb6 {[%clk 0:01:41]} 19. Na4 {[%clk 0:01:52]}  Qxb3 {[%clk 0:01:30]} 20. axb3 {[%clk 0:01:53]}  Nc8 {[%clk 0:01:26]} 21. Ke2 {[%clk 0:01:49]}  Nd6 {[%clk 0:01:26]} 22. Nc5 {[%clk 0:01:48]}  Bc8 {[%clk 0:01:22]} 23. Ra1 {[%clk 0:01:45]}  Re7 {[%clk 0:01:19]} 24. b4 {[%clk 0:01:44]}  a6 {[%clk 0:01:17]} 25. Na4 {[%clk 0:01:43]}  Bf5 {[%clk 0:01:14]} 26. Nc5 {[%clk 0:01:36]}  Bxd3+ {[%clk 0:01:14]} 27. Kxd3 {[%clk 0:01:36]}  Nfe4 {[%clk 0:01:12]} 28. Ke2 {[%clk 0:01:30]}  Ke8 {[%clk 0:01:05]} 29. g4 {[%clk 0:01:25]}  Kd8 {[%clk 0:01:03]} 30. Rh5 {[%clk 0:01:24]}  Kc7 {[%clk 0:00:59]} 31. Rhh1 {[%clk 0:01:19]}  Ng5 {[%clk 0:00:38]} 32. Rhc1 {[%clk 0:01:18]}  Nge4 {[%clk 0:00:35]} 33. f3 {[%clk 0:01:16]}  Nf6 {[%clk 0:00:31]} 34. Kd3 {[%clk 0:01:16]}  Nb5 {[%clk 0:00:28]} 35. Ra5 {[%clk 0:01:07]}  Ne8 {[%clk 0:00:28]} 36. Raa1 {[%clk 0:01:04]}  Ned6 {[%clk 0:00:28]} 37. b3 {[%clk 0:01:01]}  Rae8 {[%clk 0:00:28]} 38. Ra5 {[%clk 0:00:44]}  f6 {[%clk 0:00:26]} 39. f4 {[%clk 0:00:30]}  fxe5 {[%clk 0:00:26]} 40. fxe5 {[%clk 0:00:29]}  Nf7 {[%clk 0:00:23]} 41. Ra2 {[%clk 0:00:23]}  Nxe5+ {[%clk 0:00:23]} 42. Ke2 {[%clk 0:00:21]}  Nxg4 {[%clk 0:00:22]} 43. Kf3 {[%clk 0:00:18]}  Nxe3 {[%clk 0:00:21]} 44. Re2 {[%clk 0:00:15]}  Rf8+ {[%clk 0:00:20]} 45. Kg3 {[%clk 0:00:09]}  Nf5+ {[%clk 0:00:20]} 0-1


[Site "https://www.chess.com"]

[Event "Titled Tuesday Blitz November 14 Late 2023"]
[White "katharinareinecke"]
[Black "Minina, Veronika"]
[BlackFideId "4174780"]
[WhiteElo "1972"]
[BlackElo "2276"]
[Result "0-1"]
[Round "7"]
[TimeControl "180+1"]
[Date "2023.11.14"]
[WhiteClock "0:00:00"]
[BlackClock "0:00:11"]
[Board "120"]

1. d4 {[%clk 0:03:00]}  Nf6 {[%clk 0:02:48]} 2. c4 {[%clk 0:03:00]}  g6 {[%clk 0:02:46]} 3. Nf3 {[%clk 0:03:00]}  Bg7 {[%clk 0:02:46]} 4. g3 {[%clk 0:03:00]}  d6 {[%clk 0:02:47]} 5. Bg2 {[%clk 0:03:01]}  O-O {[%clk 0:02:48]} 6. O-O {[%clk 0:03:01]}  c6 {[%clk 0:02:49]} 7. Nc3 {[%clk 0:03:01]}  Qa5 {[%clk 0:02:49]} 8. Qc2 {[%clk 0:02:59]}  Qh5 {[%clk 0:02:49]} 9. h4 {[%clk 0:02:39]}  e5 {[%clk 0:02:30]} 10. dxe5 {[%clk 0:02:25]}  dxe5 {[%clk 0:02:31]} 11. Ne4 {[%clk 0:02:18]}  Nxe4 {[%clk 0:02:22]} 12. Qxe4 {[%clk 0:02:17]}  Bf5 {[%clk 0:02:22]} 13. Qe3 {[%clk 0:02:08]}  Nd7 {[%clk 0:02:22]} 14. Qb3 {[%clk 0:02:04]}  Nc5 {[%clk 0:02:20]} 15. Qb4 {[%clk 0:02:00]}  Ne6 {[%clk 0:02:05]} 16. Qxb7 {[%clk 0:01:58]}  e4 {[%clk 0:02:05]} 17. Ng5 {[%clk 0:01:50]}  Qxe2 {[%clk 0:02:02]} 18. Qxc6 {[%clk 0:01:41]}  Nd4 {[%clk 0:02:01]} 19. Qd5 {[%clk 0:01:21]}  Rad8 {[%clk 0:01:57]} 20. Qb7 {[%clk 0:01:18]}  Rd7 {[%clk 0:01:52]} 21. Qa6 {[%clk 0:01:08]}  h6 {[%clk 0:01:42]} 22. Nh3 {[%clk 0:00:59]}  Nc2 {[%clk 0:00:56]} 23. Nf4 {[%clk 0:00:47]}  Qg4 {[%clk 0:00:51]} 24. Bh3 {[%clk 0:00:42]}  Qf3 {[%clk 0:00:48]} 25. Bg2 {[%clk 0:00:40]}  Nb4 {[%clk 0:00:40]} 26. Bxf3 {[%clk 0:00:34]}  Nxa6 {[%clk 0:00:39]} 27. Bg2 {[%clk 0:00:32]}  g5 {[%clk 0:00:38]} 28. hxg5 {[%clk 0:00:29]}  hxg5 {[%clk 0:00:39]} 29. Nh5 {[%clk 0:00:28]}  f6 {[%clk 0:00:32]} 30. Nxg7 {[%clk 0:00:27]}  Kxg7 {[%clk 0:00:33]} 31. Be3 {[%clk 0:00:26]}  Nb4 {[%clk 0:00:32]} 32. Rfd1 {[%clk 0:00:19]}  Nd3 {[%clk 0:00:32]} 33. Bf1 {[%clk 0:00:19]}  Rb8 {[%clk 0:00:31]} 34. b3 {[%clk 0:00:18]}  Rbd8 {[%clk 0:00:30]} 35. Bxd3 {[%clk 0:00:19]}  exd3 {[%clk 0:00:29]} 36. Rd2 {[%clk 0:00:19]}  Be4 {[%clk 0:00:29]} 37. Rad1 {[%clk 0:00:18]}  f5 {[%clk 0:00:30]} 38. g4 {[%clk 0:00:15]}  f4 {[%clk 0:00:29]} 39. Bc5 {[%clk 0:00:13]}  Bf3 {[%clk 0:00:29]} 40. Re1 {[%clk 0:00:13]}  Bxg4 {[%clk 0:00:29]} 41. Re7+ {[%clk 0:00:12]}  Rxe7 {[%clk 0:00:29]} 42. Bxe7 {[%clk 0:00:13]}  Rd7 {[%clk 0:00:30]} 43. Bxg5 {[%clk 0:00:13]}  Rd4 {[%clk 0:00:26]} 44. Be7 {[%clk 0:00:12]}  Kg6 {[%clk 0:00:25]} 45. Bc5 {[%clk 0:00:12]}  Rd7 {[%clk 0:00:26]} 46. Kg2 {[%clk 0:00:11]}  Kf5 {[%clk 0:00:26]} 47. a3 {[%clk 0:00:08]}  Ke4 {[%clk 0:00:26]} 48. b4 {[%clk 0:00:08]}  Bf3+ {[%clk 0:00:25]} 49. Kf1 {[%clk 0:00:07]}  Be2+ {[%clk 0:00:25]} 50. Kg2 {[%clk 0:00:07]}  Rg7+ {[%clk 0:00:25]} 51. Kh3 {[%clk 0:00:07]}  Kf3 {[%clk 0:00:24]} 52. Kh4 {[%clk 0:00:07]}  Rg1 {[%clk 0:00:22]} 53. Kh5 {[%clk 0:00:06]}  Ke4+ {[%clk 0:00:20]} 54. Kh6 {[%clk 0:00:06]}  f3 {[%clk 0:00:19]} 55. Bxa7 {[%clk 0:00:06]}  Kf5 {[%clk 0:00:19]} 56. b5 {[%clk 0:00:04]}  Rb1 {[%clk 0:00:18]} 57. a4 {[%clk 0:00:03]}  Rc1 {[%clk 0:00:17]} 58. b6 {[%clk 0:00:03]}  Rb1 {[%clk 0:00:15]} 59. b7 {[%clk 0:00:04]}  Rxb7 {[%clk 0:00:13]} 60. Be3 {[%clk 0:00:03]}  Ke4 {[%clk 0:00:12]} 61. c5 {[%clk 0:00:03]}  Kd5 {[%clk 0:00:13]} 62. a5 {[%clk 0:00:03]}  Ra7 {[%clk 0:00:13]} 63. Ra2 {[%clk 0:00:03]}  Ra6+ {[%clk 0:00:12]} 64. Kg5 {[%clk 0:00:03]}  Kc4 {[%clk 0:00:12]} 65. Kf4 {[%clk 0:00:03]}  Kb3 {[%clk 0:00:12]} 66. Ra1 {[%clk 0:00:03]}  Kb2 {[%clk 0:00:12]} 67. Ra4 {[%clk 0:00:03]}  Kc2 {[%clk 0:00:12]} 68. Ra2+ {[%clk 0:00:03]}  Kc3 {[%clk 0:00:12]} 69. Ra3+ {[%clk 0:00:03]}  Kc4 {[%clk 0:00:12]} 70. Ra4+ {[%clk 0:00:03]}  Kb5 {[%clk 0:00:12]} 71. Ra2 {[%clk 0:00:02]}  Kc6 {[%clk 0:00:11]} 72. Ra4 {[%clk 0:00:00]}  Kd5 {[%clk 0:00:11]} 0-1


[Site "https://www.chess.com"]